[Event "*** SCC Grand Prix: Titled Tuesday Blitz"]
[Site "Chess.com"]
[Date "2020.08.11"]
[Round "1"]
[White "mjray79"]
[Black "GiantThresher"]
[Result "0-1"]
[WhiteElo "2357"]
[BlackElo "2717"]
[TimeControl "180+1"]
[EndTime "10:08:38 PDT"]
[Termination "GiantThresher won by resignation"]

1. d4 {[%clk 0:03:00.9]} 1... Nf6 {[%clk 0:02:58.3]} 2. c4 {[%clk 0:03:01.2]}
2... e6 {[%clk 0:02:46.7]} 3. g3 {[%clk 0:03:00.7]} 3... d5 {[%clk 0:02:44.7]}
4. Bg2 {[%clk 0:03:00.1]} 4... dxc4 {[%clk 0:02:43.5]} 5. Nf3 {[%clk 0:02:59.4]}
5... Bd7 {[%clk 0:02:44.2]} 6. O-O {[%clk 0:02:58.7]} 6... Bc6 {[%clk
0:02:42.4]} 7. Qc2 {[%clk 0:02:58.1]} 7... Nbd7 {[%clk 0:02:39.5]} 8. Qxc4
{[%clk 0:02:54.7]} 8... Bd5 {[%clk 0:02:39.1]} 9. Qc2 {[%clk 0:02:53.9]} 9...
Be4 {[%clk 0:02:39.4]} 10. Qd1 {[%clk 0:02:52.6]} 10... c5 {[%clk 0:02:39.6]}
11. Nc3 {[%clk 0:02:51.3]} 11... Bc6 {[%clk 0:02:40.2]} 12. Bg5 {[%clk
0:02:46.5]} 12... h6 {[%clk 0:02:38.2]} 13. Bf4 {[%clk 0:02:45.7]} 13... cxd4
{[%clk 0:02:33]} 14. Qxd4 {[%clk 0:02:35.3]} 14... Bc5 {[%clk 0:02:30.3]} 15.
Qd2 {[%clk 0:02:34.6]} 15... Nb6 {[%clk 0:02:27.4]} 16. Qc2 {[%clk 0:02:31.9]}
16... O-O {[%clk 0:02:15.8]} 17. Rad1 {[%clk 0:02:30.8]} 17... Qe7 {[%clk
0:02:16.2]} 18. e4 {[%clk 0:02:26.6]} 18... Rac8 {[%clk 0:02:02.6]} 19. e5
{[%clk 0:01:57.6]} 19... Nfd5 {[%clk 0:02:01.7]} 20. Nd4 {[%clk 0:01:52.3]}
20... Bxd4 {[%clk 0:01:51.4]} 21. Rxd4 {[%clk 0:01:53.2]} 21... Nxc3 {[%clk
0:01:51.3]} 22. bxc3 {[%clk 0:01:52.6]} 22... Bxg2 {[%clk 0:01:51.1]} 23. Kxg2
{[%clk 0:01:53.5]} 23... Nd5 {[%clk 0:01:51.6]} 24. Bd2 {[%clk 0:01:42]} 24...
Qc5 {[%clk 0:01:51.3]} 25. Rc1 {[%clk 0:01:34.5]} 25... Ne7 {[%clk 0:01:42.7]}
26. Qe4 {[%clk 0:01:29.5]} 26... Qc6 {[%clk 0:01:40.5]} 27. Qxc6 {[%clk
0:01:24.6]} 27... Nxc6 {[%clk 0:01:41.4]} 28. Rd7 {[%clk 0:01:23.3]} 28... Rfd8
{[%clk 0:01:40]} 29. Rxd8+ {[%clk 0:01:18.9]} 29... Rxd8 {[%clk 0:01:40.9]} 30.
Bf4 {[%clk 0:01:17.5]} 30... Rd5 {[%clk 0:01:33.6]} 31. Rb1 {[%clk 0:00:59.6]}
31... b6 {[%clk 0:01:32.5]} 32. Re1 {[%clk 0:00:57.2]} 32... g5 {[%clk
0:01:30.5]} 33. Bc1 {[%clk 0:00:57.1]} 33... Nxe5 {[%clk 0:01:29.6]} 34. Re4
{[%clk 0:00:55.5]} 34... Nd3 {[%clk 0:01:29.3]} 35. Be3 {[%clk 0:00:54.4]} 35...
Nc5 {[%clk 0:01:13.4]} 36. Rb4 {[%clk 0:00:49.8]} 36... f6 {[%clk 0:01:12.2]}
37. a4 {[%clk 0:00:48.5]} 37... Kf7 {[%clk 0:01:02.5]} 38. a5 {[%clk 0:00:47.6]}
38... bxa5 {[%clk 0:01:02.9]} 39. Rb8 {[%clk 0:00:45.8]} 39... Ne4 {[%clk
0:00:52.9]} 40. Rb7+ {[%clk 0:00:34.9]} 40... Kg6 {[%clk 0:00:53]} 41. c4 {[%clk
0:00:30.3]} 41... Rd6 {[%clk 0:00:53.3]} 42. Rxa7 {[%clk 0:00:29.8]} 42... Rc6
{[%clk 0:00:53.7]} 43. Rxa5 {[%clk 0:00:22.4]} 43... Rxc4 {[%clk 0:00:53.6]} 44.
Ra6 {[%clk 0:00:22.4]} 44... Kf5 {[%clk 0:00:52.4]} 45. g4+ {[%clk 0:00:19.9]}
45... Ke5 {[%clk 0:00:52.2]} 46. h4 {[%clk 0:00:18.9]} 46... Nd6 {[%clk
0:00:46]} 47. hxg5 {[%clk 0:00:17.7]} 47... hxg5 {[%clk 0:00:44.2]} 48. Kf3
{[%clk 0:00:17.6]} 48... Rb4 {[%clk 0:00:33.9]} 49. Kg3 {[%clk 0:00:14.8]} 49...
Rb3 {[%clk 0:00:30]} 50. Kf3 {[%clk 0:00:12.2]} 50... Nc4 {[%clk 0:00:27.7]} 51.
Ke2 {[%clk 0:00:08.2]} 51... Rb2+ {[%clk 0:00:24.6]} 52. Kf3 {[%clk 0:00:07.7]}
52... Kd5 {[%clk 0:00:22.1]} 53. Ra8 {[%clk 0:00:06.6]} 53... Rb3 {[%clk
0:00:20.8]} 54. Rd8+ {[%clk 0:00:06.6]} 54... Kc6 {[%clk 0:00:20.7]} 55. Re8
{[%clk 0:00:06.7]} 55... Ne5+ {[%clk 0:00:20.6]} 56. Kg3 {[%clk 0:00:05.9]}
56... Kd5 {[%clk 0:00:21.5]} 57. Rd8+ {[%clk 0:00:05.6]} 57... Kc6 {[%clk
0:00:19.4]} 58. Re8 {[%clk 0:00:05.4]} 58... Kd6 {[%clk 0:00:19.9]} 59. Rf8
{[%clk 0:00:04.9]} 59... Ke7 {[%clk 0:00:19]} 60. Ra8 {[%clk 0:00:04.5]} 60...
Kf7 {[%clk 0:00:18.7]} 61. Ra7+ {[%clk 0:00:01.8]} 61... Kg6 {[%clk 0:00:18.9]}
62. Ra6 {[%clk 0:00:01.9]} 62... Kf7 {[%clk 0:00:18.1]} 63. Ra7+ {[%clk
0:00:01.9]} 63... Kg6 {[%clk 0:00:18.7]} 64. Ra6 {[%clk 0:00:02.3]} 64... Rb4
{[%clk 0:00:19.2]} 65. Ra7 {[%clk 0:00:02.1]} 65... Rxg4+ {[%clk 0:00:19.2]} 66.
Kh2 {[%clk 0:00:02.6]} 66... Re4 {[%clk 0:00:19.6]} 67. Ra6 {[%clk 0:00:02.4]}
67... Ng4+ {[%clk 0:00:19.5]} 68. Kg3 {[%clk 0:00:02.4]} 68... Nxe3 {[%clk
0:00:20.4]} 69. f3 {[%clk 0:00:02.2]} 69... Re5 {[%clk 0:00:20.3]} 0-1

[Event "*** SCC Grand Prix: Titled Tuesday Blitz"]
[Site "Chess.com"]
[Date "2020.08.11"]
[Round "1"]
[White "JonahWillow"]
[Black "Gulkov_Igor"]
[Result "0-1"]
[WhiteElo "2741"]
[BlackElo "2409"]
[TimeControl "180+1"]
[EndTime "10:08:39 PDT"]
[Termination "Gulkov_Igor won by resignation"]

1. e4 {[%clk 0:03:00.9]} 1... c5 {[%clk 0:02:58.6]} 2. Nf3 {[%clk 0:03:00.6]}
2... d6 {[%clk 0:02:57.7]} 3. d4 {[%clk 0:03:00.7]} 3... cxd4 {[%clk 0:02:57.9]}
4. Qxd4 {[%clk 0:03:01.6]} 4... Nc6 {[%clk 0:02:55.4]} 5. Bb5 {[%clk 0:03:01.2]}
5... Bd7 {[%clk 0:02:55]} 6. Bxc6 {[%clk 0:03:00.8]} 6... Bxc6 {[%clk
0:02:55.1]} 7. Nc3 {[%clk 0:02:59.4]} 7... Nf6 {[%clk 0:02:54.4]} 8. Bg5 {[%clk
0:02:59]} 8... e6 {[%clk 0:02:54.6]} 9. O-O-O {[%clk 0:02:58.8]} 9... Be7 {[%clk
0:02:54.2]} 10. Qd3 {[%clk 0:02:57.8]} 10... h6 {[%clk 0:02:53.1]} 11. Bh4
{[%clk 0:02:56.8]} 11... Qa5 {[%clk 0:02:52.7]} 12. Nd4 {[%clk 0:02:48.4]} 12...
O-O {[%clk 0:02:42.3]} 13. f4 {[%clk 0:02:42.7]} 13... Rfd8 {[%clk 0:02:27.5]}
14. Nb3 {[%clk 0:02:36.8]} 14... Qc7 {[%clk 0:02:22.1]} 15. Rhg1 {[%clk
0:02:27.5]} 15... a5 {[%clk 0:02:04.3]} 16. Nd4 {[%clk 0:02:20.9]} 16... d5
{[%clk 0:01:49.8]} 17. e5 {[%clk 0:02:12.9]} 17... Ne4 {[%clk 0:01:46.4]} 18.
Bxe7 {[%clk 0:02:12.4]} 18... Qxe7 {[%clk 0:01:30]} 19. Nxc6 {[%clk 0:02:11.9]}
19... bxc6 {[%clk 0:01:27.4]} 20. Nxe4 {[%clk 0:02:12.3]} 20... dxe4 {[%clk
0:01:25.5]} 21. Qxe4 {[%clk 0:02:13.2]} 21... Qc5 {[%clk 0:01:18.6]} 22. Rge1
{[%clk 0:02:02.7]} 22... Rd5 {[%clk 0:01:18.2]} 23. f5 {[%clk 0:01:36.8]} 23...
Rad8 {[%clk 0:01:14.2]} 24. Rxd5 {[%clk 0:01:36.2]} 24... Rxd5 {[%clk
0:01:09.9]} 25. f6 {[%clk 0:01:30.3]} 25... g6 {[%clk 0:01:01.3]} 26. h4 {[%clk
0:01:24.4]} 26... Qb4 {[%clk 0:00:28.4]} 27. Qxb4 {[%clk 0:00:49.4]} 27... axb4
{[%clk 0:00:27.8]} 28. Re4 {[%clk 0:00:50.3]} 28... c5 {[%clk 0:00:26]} 29. a4
{[%clk 0:00:50.2]} 29... bxa3 {[%clk 0:00:21.3]} 30. bxa3 {[%clk 0:00:51.1]}
30... Kf8 {[%clk 0:00:18.7]} 31. a4 {[%clk 0:00:49.8]} 31... Ke8 {[%clk
0:00:18.7]} 32. Kb2 {[%clk 0:00:40.4]} 32... Kd7 {[%clk 0:00:18.3]} 33. Kc3
{[%clk 0:00:40.3]} 33... Kc6 {[%clk 0:00:18.6]} 34. g4 {[%clk 0:00:34.2]} 34...
Rd1 {[%clk 0:00:17.7]} 35. Re2 {[%clk 0:00:29.7]} 35... Ra1 {[%clk 0:00:17]} 36.
Kb3 {[%clk 0:00:25]} 36... Rb1+ {[%clk 0:00:17.3]} 37. Kc3 {[%clk 0:00:20.4]}
37... Rb4 {[%clk 0:00:16.7]} 38. Rd2 {[%clk 0:00:18.3]} 38... Rxa4 {[%clk
0:00:13.4]} 39. Rd8 {[%clk 0:00:15.7]} 39... Rxg4 {[%clk 0:00:12.6]} 40. Rf8
{[%clk 0:00:16.1]} 40... Kd5 {[%clk 0:00:12.8]} 41. Rxf7 {[%clk 0:00:15.1]}
41... Kxe5 {[%clk 0:00:13.2]} 42. Rf8 {[%clk 0:00:12.3]} 42... Rxh4 {[%clk
0:00:13.3]} 43. f7 {[%clk 0:00:11.8]} 43... Kf6 {[%clk 0:00:13.6]} 44. Rc8
{[%clk 0:00:09.2]} 44... Kxf7 {[%clk 0:00:13.8]} 45. Rxc5 {[%clk 0:00:10.1]}
45... g5 {[%clk 0:00:14.2]} 46. Kd2 {[%clk 0:00:10.4]} 46... Kf6 {[%clk
0:00:14.6]} 47. Ke3 {[%clk 0:00:11.3]} 47... Rh3+ {[%clk 0:00:14.5]} 48. Kf2
{[%clk 0:00:11.7]} 48... h5 {[%clk 0:00:15]} 49. Kg2 {[%clk 0:00:12.1]} 49... g4
{[%clk 0:00:15.5]} 50. Rc8 {[%clk 0:00:12.9]} 50... Kg5 {[%clk 0:00:14.6]} 51.
c4 {[%clk 0:00:12.6]} 51... Rc3 {[%clk 0:00:13.9]} 52. c5 {[%clk 0:00:12.9]}
52... Rc2+ {[%clk 0:00:13.6]} 53. Kf1 {[%clk 0:00:12.8]} 53... h4 {[%clk
0:00:14.2]} 54. c6 {[%clk 0:00:13.7]} 54... Kf4 {[%clk 0:00:14.4]} 55. c7 {[%clk
0:00:13.3]} 55... Kg3 {[%clk 0:00:14.9]} 56. Ke1 {[%clk 0:00:13.9]} 56... h3
{[%clk 0:00:15.2]} 57. Kd1 {[%clk 0:00:14.8]} 57... Rc4 {[%clk 0:00:15.1]} 58.
Kd2 {[%clk 0:00:14.6]} 58... Kg2 {[%clk 0:00:15.3]} 59. Kd3 {[%clk 0:00:14.8]}
59... Rc6 {[%clk 0:00:14.7]} 60. Rg8 {[%clk 0:00:15.1]} 60... g3 {[%clk
0:00:14.2]} 61. c8=Q {[%clk 0:00:15]} 61... Rxc8 {[%clk 0:00:13.6]} 62. Rxc8
{[%clk 0:00:15.9]} 62... h2 {[%clk 0:00:14]} 63. Rc2+ {[%clk 0:00:16.8]} 63...
Kh3 {[%clk 0:00:13.9]} 64. Rc1 {[%clk 0:00:15.7]} 64... g2 {[%clk 0:00:13.5]}
65. Rc8 {[%clk 0:00:15.7]} 65... g1=Q {[%clk 0:00:13.6]} 66. Rh8+ {[%clk
0:00:16.6]} 66... Kg2 {[%clk 0:00:13.5]} 67. Rg8+ {[%clk 0:00:17.5]} 67... Kf2
{[%clk 0:00:14.1]} 68. Rf8+ {[%clk 0:00:17.5]} 68... Ke1 {[%clk 0:00:14.1]} 69.
Ra8 {[%clk 0:00:17.6]} 69... Qf1+ {[%clk 0:00:13.8]} 70. Ke3 {[%clk 0:00:17.7]}
70... Qf2+ {[%clk 0:00:13.7]} 71. Kd3 {[%clk 0:00:18]} 71... Qf3+ {[%clk
0:00:14]} 0-1

[Event "*** SCC Grand Prix: Titled Tuesday Blitz"]
[Site "Chess.com"]
[Date "2020.08.11"]
[Round "1"]
[White "Aygehovit1992"]
[Black "queen_iryna"]
[Result "1-0"]
[WhiteElo "2606"]
[BlackElo "2256"]
[TimeControl "180+1"]
[EndTime "10:08:40 PDT"]
[Termination "Aygehovit1992 won by resignation"]

1. e4 {[%clk 0:03:00.9]} 1... d6 {[%clk 0:02:59]} 2. d4 {[%clk 0:02:56.6]} 2...
Nf6 {[%clk 0:02:58.8]} 3. Nc3 {[%clk 0:02:54]} 3... e5 {[%clk 0:02:58.1]} 4. Nf3
{[%clk 0:02:50]} 4... Nbd7 {[%clk 0:02:56.8]} 5. Bc4 {[%clk 0:02:49.8]} 5... Be7
{[%clk 0:02:56.2]} 6. O-O {[%clk 0:02:49.1]} 6... O-O {[%clk 0:02:55.4]} 7. a4
{[%clk 0:02:48.8]} 7... c6 {[%clk 0:02:52.2]} 8. Re1 {[%clk 0:02:48.2]} 8... h6
{[%clk 0:02:51.8]} 9. h3 {[%clk 0:02:42.2]} 9... Re8 {[%clk 0:02:50.8]} 10. Be3
{[%clk 0:02:41.5]} 10... Bf8 {[%clk 0:02:45.9]} 11. Nh4 {[%clk 0:02:40.7]} 11...
exd4 {[%clk 0:02:34.6]} 12. Bxd4 {[%clk 0:02:38.4]} 12... Nxe4 {[%clk
0:01:49.8]} 13. Rxe4 {[%clk 0:01:32.2]} 13... Rxe4 {[%clk 0:01:46.8]} 14. Bxf7+
{[%clk 0:01:31.6]} 14... Kxf7 {[%clk 0:01:38.4]} 15. Qh5+ {[%clk 0:01:31.2]}
15... Kg8 {[%clk 0:01:24.3]} 16. Nxe4 {[%clk 0:01:30.7]} 16... d5 {[%clk
0:01:18.6]} 17. Ng3 {[%clk 0:01:24.1]} 17... Nf6 {[%clk 0:01:16.5]} 18. Qg6
{[%clk 0:01:17.5]} 18... Qe8 {[%clk 0:00:51.5]} 19. Re1 {[%clk 0:01:11.4]} 19...
Qxg6 {[%clk 0:00:49.9]} 20. Nxg6 {[%clk 0:01:11]} 20... Bd7 {[%clk 0:00:45.4]}
21. Bxf6 {[%clk 0:01:03]} 21... gxf6 {[%clk 0:00:44.4]} 22. Nh5 {[%clk
0:01:03.2]} 22... Kf7 {[%clk 0:00:41.1]} 23. Nh8+ {[%clk 0:01:02.9]} 23... Kg8
{[%clk 0:00:33.5]} 24. Nxf6+ {[%clk 0:01:02.9]} 24... Kxh8 {[%clk 0:00:34.4]}
25. Nxd7 {[%clk 0:01:03.8]} 25... Bg7 {[%clk 0:00:29.6]} 26. c3 {[%clk
0:01:02.4]} 26... b6 {[%clk 0:00:27.5]} 27. Re7 {[%clk 0:01:02.2]} 27... c5
{[%clk 0:00:21.2]} 28. f4 {[%clk 0:01:02.1]} 28... d4 {[%clk 0:00:20.5]} 29. f5
{[%clk 0:01:01.9]} 29... d3 {[%clk 0:00:14.9]} 30. f6 {[%clk 0:00:51.1]} 30...
Bf8 {[%clk 0:00:11.4]} 31. Re3 {[%clk 0:00:33.2]} 31... c4 {[%clk 0:00:11.1]}
32. Kf2 {[%clk 0:00:23.1]} 32... Rd8 {[%clk 0:00:09.4]} 33. Nxf8 {[%clk
0:00:22.9]} 33... Rxf8 {[%clk 0:00:10.3]} 34. Rf3 {[%clk 0:00:23.2]} 34... Kg8
{[%clk 0:00:09.2]} 35. Rf4 {[%clk 0:00:19.3]} 35... Kf7 {[%clk 0:00:09.2]} 36.
Rxc4 {[%clk 0:00:18.8]} 36... Rd8 {[%clk 0:00:09]} 37. Rd4 {[%clk 0:00:17.7]}
37... Re8 {[%clk 0:00:07.9]} 38. Rxd3 {[%clk 0:00:17.3]} 38... Kxf6 {[%clk
0:00:08.8]} 39. Rf3+ {[%clk 0:00:17.5]} 39... Kg6 {[%clk 0:00:08.5]} 40. Re3
{[%clk 0:00:17]} 40... Rf8+ {[%clk 0:00:08.6]} 41. Ke2 {[%clk 0:00:17.5]} 41...
Rf5 {[%clk 0:00:08.8]} 42. g4 {[%clk 0:00:17.6]} 42... Ra5 {[%clk 0:00:08.6]}
43. b3 {[%clk 0:00:17.5]} 43... Rc5 {[%clk 0:00:08.6]} 44. c4 {[%clk 0:00:17.2]}
44... Rc6 {[%clk 0:00:08.8]} 45. Kd3 {[%clk 0:00:17.4]} 45... a5 {[%clk
0:00:08.6]} 46. Re5 {[%clk 0:00:17.3]} 46... Rd6+ {[%clk 0:00:08.1]} 47. Rd5
{[%clk 0:00:17.4]} 47... Rf6 {[%clk 0:00:07.4]} 48. c5 {[%clk 0:00:17.9]} 48...
bxc5 {[%clk 0:00:06.1]} 49. Rxc5 {[%clk 0:00:18.8]} 49... Rf3+ {[%clk
0:00:06.4]} 50. Kc4 {[%clk 0:00:19.1]} 50... Rxh3 {[%clk 0:00:05.6]} 51. Rxa5
{[%clk 0:00:19.2]} 51... Rh4 {[%clk 0:00:05.7]} 52. Ra6+ {[%clk 0:00:16.1]}
52... Kg5 {[%clk 0:00:05.8]} 53. b4 {[%clk 0:00:16.6]} 53... Rxg4+ {[%clk
0:00:05.4]} 54. Kc5 {[%clk 0:00:17]} 54... h5 {[%clk 0:00:05.8]} 55. Ra8 {[%clk
0:00:17.1]} 55... h4 {[%clk 0:00:05.6]} 56. Rh8 {[%clk 0:00:17]} 56... Kf4
{[%clk 0:00:06.5]} 57. b5 {[%clk 0:00:16.6]} 57... Kg3 {[%clk 0:00:06.7]} 58. a5
{[%clk 0:00:16.6]} 58... Rg5+ {[%clk 0:00:06.7]} 59. Kb6 {[%clk 0:00:14.9]}
59... Rg7 {[%clk 0:00:07]} 60. a6 {[%clk 0:00:14.1]} 60... Rg6+ {[%clk
0:00:06.8]} 61. Ka5 {[%clk 0:00:14]} 61... Rg7 {[%clk 0:00:07.7]} 62. b6 {[%clk
0:00:12.9]} 62... Rg5+ {[%clk 0:00:07.7]} 63. Ka4 {[%clk 0:00:12.9]} 63... Rg4+
{[%clk 0:00:07.7]} 64. Kb3 {[%clk 0:00:12.6]} 64... Rf4 {[%clk 0:00:06.2]} 65.
b7 {[%clk 0:00:11.5]} 65... Rf3+ {[%clk 0:00:06]} 66. Kb4 {[%clk 0:00:11.4]}
66... Rf4+ {[%clk 0:00:06.1]} 67. Kb5 {[%clk 0:00:11.7]} 67... Rf5+ {[%clk
0:00:06.4]} 68. Kb6 {[%clk 0:00:12]} 68... Rf6+ {[%clk 0:00:06.7]} 69. Ka7
{[%clk 0:00:12.3]} 69... Rf7 {[%clk 0:00:07.1]} 70. Ka8 {[%clk 0:00:11.8]} 1-0

[Event "*** SCC Grand Prix: Titled Tuesday Blitz"]
[Site "Chess.com"]
[Date "2020.08.11"]
[Round "1"]
[White "Alopekos"]
[Black "ftorodent"]
[Result "0-1"]
[WhiteElo "2308"]
[BlackElo "2652"]
[TimeControl "180+1"]
[EndTime "10:08:42 PDT"]
[Termination "ftorodent won on time"]

1. d4 {[%clk 0:02:59.7]} 1... f5 {[%clk 0:02:59.2]} 2. Nc3 {[%clk 0:02:58.4]}
2... Nf6 {[%clk 0:02:58.7]} 3. Bg5 {[%clk 0:02:58.6]} 3... d5 {[%clk 0:02:58.5]}
4. e3 {[%clk 0:02:58.1]} 4... g6 {[%clk 0:02:56.9]} 5. h4 {[%clk 0:02:52.2]}
5... Be6 {[%clk 0:02:49.1]} 6. h5 {[%clk 0:02:44.4]} 6... Nxh5 {[%clk
0:02:45.5]} 7. Rxh5 {[%clk 0:02:43]} 7... gxh5 {[%clk 0:02:45.6]} 8. Qxh5+
{[%clk 0:02:38.6]} 8... Bf7 {[%clk 0:02:45.5]} 9. Qh3 {[%clk 0:02:38.1]} 9...
Qd7 {[%clk 0:02:08.5]} 10. Bb5 {[%clk 0:02:26.8]} 10... Nc6 {[%clk 0:01:53.7]}
11. Nf3 {[%clk 0:02:19]} 11... Bg7 {[%clk 0:01:51.7]} 12. O-O-O {[%clk
0:02:16.9]} 12... O-O-O {[%clk 0:01:45.9]} 13. Na4 {[%clk 0:01:58.9]} 13... Rde8
{[%clk 0:01:21.9]} 14. Nc5 {[%clk 0:01:55.5]} 14... Qd6 {[%clk 0:01:21.1]} 15.
Qxf5+ {[%clk 0:01:33.4]} 15... e6 {[%clk 0:01:20.4]} 16. Qxf7 {[%clk 0:01:28.9]}
16... Rhg8 {[%clk 0:01:20.4]} 17. Bf4 {[%clk 0:01:07.8]} 17... Qe7 {[%clk
0:01:19.9]} 18. Qxe7 {[%clk 0:01:02]} 18... Rxe7 {[%clk 0:01:19.9]} 19. Bxc6
{[%clk 0:01:01.9]} 19... bxc6 {[%clk 0:01:20.2]} 20. g3 {[%clk 0:01:00]} 20...
Bf8 {[%clk 0:01:10.3]} 21. Ne5 {[%clk 0:00:57.9]} 21... Re8 {[%clk 0:01:10.5]}
22. Ncd3 {[%clk 0:00:54.8]} 22... Kb7 {[%clk 0:01:08.4]} 23. Rh1 {[%clk
0:00:53.8]} 23... h6 {[%clk 0:01:03.7]} 24. Rh4 {[%clk 0:00:46.5]} 24... Be7
{[%clk 0:00:58.5]} 25. Rxh6 {[%clk 0:00:45.3]} 25... Rh8 {[%clk 0:00:58.8]} 26.
Rxe6 {[%clk 0:00:41.8]} 26... Rh1+ {[%clk 0:00:57.7]} 27. Kd2 {[%clk 0:00:42.7]}
27... Bb4+ {[%clk 0:00:57.7]} 28. Nxb4 {[%clk 0:00:39]} 28... Rxe6 {[%clk
0:00:57.7]} 29. Nbxc6 {[%clk 0:00:35.1]} 29... Rxc6 {[%clk 0:00:55.2]} 30. Nxc6
{[%clk 0:00:36]} 30... Kxc6 {[%clk 0:00:55.6]} 31. g4 {[%clk 0:00:33]} 31... Rg1
{[%clk 0:00:48.6]} 32. Bg3 {[%clk 0:00:32.4]} 32... Kd7 {[%clk 0:00:46.7]} 33.
b3 {[%clk 0:00:30.1]} 33... c6 {[%clk 0:00:43.9]} 34. c4 {[%clk 0:00:29.2]}
34... Ra1 {[%clk 0:00:41.3]} 35. cxd5 {[%clk 0:00:20.7]} 35... Rxa2+ {[%clk
0:00:39.5]} 36. Kc3 {[%clk 0:00:21.1]} 36... cxd5 {[%clk 0:00:39.6]} 37. g5
{[%clk 0:00:20.2]} 37... Ke6 {[%clk 0:00:39.4]} 38. Kb4 {[%clk 0:00:19.4]} 38...
Rc2 {[%clk 0:00:31.2]} 39. Be5 {[%clk 0:00:16.6]} 39... Kf5 {[%clk 0:00:29.4]}
40. f4 {[%clk 0:00:12.5]} 40... a6 {[%clk 0:00:16.9]} 41. Ka5 {[%clk 0:00:10.6]}
41... Rc6 {[%clk 0:00:16.8]} 42. b4 {[%clk 0:00:09.7]} 42... Ke4 {[%clk
0:00:16.8]} 43. b5 {[%clk 0:00:07.3]} 43... axb5 {[%clk 0:00:16.9]} 44. Kxb5
{[%clk 0:00:08.2]} 44... Re6 {[%clk 0:00:16]} 45. Kc5 {[%clk 0:00:07.4]} 45...
Rg6 {[%clk 0:00:14.8]} 46. Bf6 {[%clk 0:00:04.9]} 46... Rg8 {[%clk 0:00:13.5]}
47. Kd6 {[%clk 0:00:04.6]} 47... Ra8 {[%clk 0:00:07.6]} 48. Ke6 {[%clk
0:00:05.5]} 48... Ra6+ {[%clk 0:00:07]} 49. Kf7 {[%clk 0:00:06.4]} 49... Kf5
{[%clk 0:00:07.5]} 50. Be7 {[%clk 0:00:04.4]} 50... Re6 {[%clk 0:00:06.3]} 51.
Bc5 {[%clk 0:00:03]} 51... Rxe3 {[%clk 0:00:05.2]} 52. Kf8 {[%clk 0:00:03.9]}
52... Kg6 {[%clk 0:00:04.5]} 53. Kg8 {[%clk 0:00:02.7]} 53... Re8+ {[%clk
0:00:03.6]} 54. Bf8 {[%clk 0:00:03.6]} 54... Re4 {[%clk 0:00:03.5]} 55. Bd6
{[%clk 0:00:02.7]} 55... Rxd4 {[%clk 0:00:03.8]} 56. Be5 {[%clk 0:00:03.6]}
56... Re4 {[%clk 0:00:03.9]} 57. Kf8 {[%clk 0:00:02.8]} 57... d4 {[%clk
0:00:03.9]} 58. Bxd4 {[%clk 0:00:02.5]} 58... Rxd4 {[%clk 0:00:03.8]} 59. f5+
{[%clk 0:00:03.4]} 59... Kxg5 {[%clk 0:00:03]} 60. f6 {[%clk 0:00:02.8]} 60...
Kxf6 {[%clk 0:00:03.2]} 0-1